bitfinex/quotes_ETHUSD_20220105
["timestamp","ask_amount","ask_price","bid_price","bid_amount"]
[1641419042305,0.70292,3558.6,3557.2,0.01136847]
[1641419042507,0.70294,3558.0,3557.2,0.01136847]
[1641419043105,4.4,3558.2,3556.7,0.52451767]
[1641419043405,0.00511582,3558.1,3556.8,0.00227369]
[1641419043806,0.70289,3558.2,3556.8,0.00227369]
[1641419043807,0.00454739,3558.0,3556.8,0.00227369]
[1641419044007,0.00454739,3558.0,3557.1,1.40859854]
[1641419044205,0.00397897,3557.9,3557.1,1.40859854]
[1641419044608,0.00341055,3557.8,3557.1,1.40859854]
[1641419045026,0.00284212,3557.7,3557.1,1.40859854]
[1641419045425,0.0022737,3557.6,3557.1,1.40859854]
[1641419045625,0.0022737,3557.6,3557.2,0.5020469]
[1641419045826,0.00170527,3557.5,3557.3,0.70279]
[1641419046027,5.27e-06,3557.5,3557.4,3.34136376]
[1641419046226,1.17441084,3559.2,3557.4,0.702693]
[1641419046426,1.17441084,3559.2,3557.5,2.93172522]
[1641419046629,0.00910005,3559.1,3557.5,0.70269]
[1641419046826,0.00910005,3559.1,3557.5,1.40531]
[1641419047029,0.00853163,3559.0,3557.5,1.40531]
[1641419047229,0.00853163,3559.0,3558.1,0.46991247]
[1641419047430,0.0079632,3558.9,3558.1,0.46991247]
[1641419047831,0.00739478,3558.8,3558.1,0.46991247]
[1641419048030,0.70271,3559.1,3558.2,4.65]
[1641419048232,0.70271,3559.1,3558.2,0.00341054]
[1641419048570,0.00113685,3559.0,3558.2,0.00341054]
[1641419050172,0.00113685,3559.0,3558.3,0.00118834]
[1641419050572,0.00113685,3559.0,3558.4,0.00227369]
[1641419051174,0.00113685,3559.0,3558.5,0.01094426]
[1641419051572,0.00113685,3559.0,3558.6,0.00113685]
[1641419051775,0.00113685,3559.0,3558.9,8.55472929]
[1641419052175,0.00113685,3559.0,3558.6,0.00113685]
[1641419054038,1.40664685,3559.0,3558.6,0.00113685]
[1641419054241,1.87832769,3559.0,3558.6,0.00113685]
[1641419054442,0.7028244,3558.9,3558.6,0.00113685]
[1641419054640,1.4056244,3558.9,3558.6,0.00113685]
[1641419054844,0.01205591,3558.7,3556.6,0.45]
[1641419055039,0.70301,3557.6,3556.6,0.45]
[1641419055240,0.70304,3557.3,3556.6,0.33445104]
[1641419055639,0.00284211,3557.2,3556.6,0.33445104]
[1641419055840,0.00284211,3557.2,3556.8,0.55340629]
[1641419056073,0.00227369,3557.1,3556.6,0.33445104]
[1641419056477,0.00170527,3557.0,3556.6,0.33445104]
[1641419056879,0.00113684,3556.9,3556.6,0.33445104]
[1641419057080,0.00113684,3556.9,3556.7,0.44354523]
[1641419057278,0.00852635,3558.2,3556.7,0.44354523]
[1641419057678,0.00795793,3558.1,3556.7,0.44354523]
[1641419057879,0.7029499,3558.0,3556.7,0.44354523]
[1641419058078,0.70295,3557.8,3556.7,0.44354523]
[1641419058479,0.00568423,3557.7,3556.7,0.44354523]
[1641419058978,0.00511581,3557.6,3556.7,0.44354523]
[1641419059379,0.70758738,3557.5,3556.6,0.33445104]
[1641419059820,0.00397896,3557.4,3556.6,0.33445104]
[1641419060226,0.00341054,3557.3,3556.6,0.33445104]
[1641419060627,0.7029736,3557.9,3557.0,0.54333711]
[1641419060628,0.00284211,3557.2,3557.0,0.54333711]
[1641419060826,0.00284211,3557.2,3556.6,0.33445104]
[1641419061027,0.00227369,3557.1,3556.7,0.00126699]
[1641419061424,0.00170527,3557.0,3556.7,0.00126699]
[1641419061825,0.00113684,3556.9,3556.7,0.46051635]
[1641419062228,0.70302,3557.6,3556.7,0.46051635]
[1641419062627,0.00454738,3557.5,3556.7,0.46051635]
[1641419063026,0.328,3558.7,3556.7,0.46051635]
[1641419063027,0.00397896,3557.4,3556.7,0.46051635]
[1641419063225,0.00397896,3557.4,3556.8,16.24]
[1641419063428,1.0,3558.5,3557.0,0.01260361]
[1641419063429,1.054e-05,3557.3,3557.0,0.01260361]
[1641419063676,1.054e-05,3557.3,3557.1,0.328]
[1641419063873,3.04376881,3559.2,3557.5,0.7026438]
[1641419064077,3.04376881,3559.2,3558.2,0.01238804]
[1641419064272,0.00170527,3558.7,3558.2,0.01238804]
[1641419064471,0.00170527,3558.7,3558.3,0.06554899]
[1641419064674,0.00113684,3558.6,3558.3,0.06554899]
[1641419064877,3.684e-05,3558.6,3558.4,0.328]
[1641419065073,1.0,3560.2,3558.4,16.5691]
[1641419065074,0.00397896,3559.1,3558.4,16.5691]
[1641419065274,0.00397896,3559.1,3558.6,0.7024219]
[1641419065473,0.00231054,3559.0,3558.6,0.7024219]
[1641419065877,0.00174211,3558.9,3558.7,0.52905361]
[1641419066074,4.211e-05,3558.9,3558.7,2.75847077]
[1641419066275,0.70238,3560.8,3558.8,19.04198013]
[1641419066475,3.19183915,3560.9,3559.3,0.7023027]
[1641419066678,3.19183915,3560.9,3559.5,16.24]
[1641419066679,0.00682635,3560.3,3559.5,16.24]
[1641419066880,2.635e-05,3560.3,3559.6,0.328]
[1641419067078,3.90361039,3561.4,3559.9,1.58916104]
[1641419067079,5.793e-05,3560.2,3559.9,1.58916104]
[1641419067320,5.793e-05,3560.2,3560.0,0.328]
[1641419067523,5.793e-05,3560.2,3560.1,17.97208]
[1641419067720,5.793e-05,3560.2,3560.1,17.9793905]
[1641419068120,3.86561323,3561.6,3560.2,7.95]
[1641419068322,3.81561323,3561.6,3560.6,0.70205]
[1641419068523,0.01253087,3562.1,3560.6,1.03005]
[1641419068726,2.7067656,3562.0,3560.7,0.00395788]
[1641419068922,0.00115793,3561.6,3560.7,0.00395788]
[1641419069326,0.00115793,3561.6,3560.4,0.00566315]
[1641419069527,0.00115793,3561.6,3560.6,0.57427051]
[1641419069927,0.00115793,3561.6,3559.7,3.13655]
[1641419069928,0.00115793,3561.6,3560.7,0.00395788]
[1641419070131,1.40478,3561.3,3560.7,0.00395788]
[1641419070327,1.40478,3561.3,3559.8,0.0090737]
[1641419070729,4.09103686,3561.3,3559.1,0.01305266]
[1641419070928,0.5789741,3560.8,3559.3,0.48515891]
[1641419071180,0.5789741,3560.8,3559.1,0.01305266]
[1641419071181,0.70252,3560.2,3559.1,0.01305266]
[1641419071486,0.5789741,3560.8,3558.4,2.85916046]
[1641419071487,0.70259,3560.1,3558.8,0.01475793]
[1641419071682,0.70259,3560.1,3559.2,0.00087221]
[1641419071979,0.70259,3560.1,3559.3,0.01191581]
[1641419072686,0.70262,3560.0,3559.3,0.01191581]
[1641419072888,1.0,3560.2,3559.3,0.01191581]
[1641419073183,1.4050066,3561.0,3559.3,0.01191581]
[1641419073184,10.7326,3561.2,3560.0,0.59290677]
[1641419073385,3.5526,3561.2,3560.1,0.01296225]
[1641419073586,0.00115793,3561.6,3560.1,0.01296225]
[1641419073587,0.00115793,3561.6,3560.1,1.35191172]
[1641419073786,1.56359269,3560.5,3560.2,0.0068]
[1641419073986,1.51359269,3560.5,3560.2,0.0068]
[1641419074386,1.46359269,3560.5,3560.2,0.0068]
[1641419074590,1.46359269,3560.5,3560.0,0.59290677]
[1641419074591,1.46359269,3560.5,3560.1,0.00736843]
[1641419075037,0.00115793,3561.6,3560.1,0.00736843]
[1641419075038,0.70234,3561.1,3560.1,0.00736843]
[1641419075240,1.1737303,3560.6,3560.2,3.5]
[1641419075634,1.1737303,3560.6,3560.3,0.00623158]
[1641419075935,1.1737303,3560.6,3559.8,0.0090737]
[1641419076337,1.1737303,3560.9,3559.8,0.0090737]
[1641419076535,1.1737303,3560.9,3559.9,0.4586521]
[1641419076735,1.1737303,3560.9,3560.0,0.70216]
[1641419076936,1.1737303,3560.9,3560.8,6.62369366]
[1641419077339,0.00115793,3561.6,3560.8,22.86708312]
[1641419077340,1.1737303,3561.3,3560.8,22.86708312]
[1641419077742,1.1737303,3561.3,3561.0,0.42722555]
[1641419078141,1.1737303,3561.3,3561.1,0.00168419]
[1641419078569,0.00115793,3561.6,3561.1,0.00168419]
[1641419078970,0.00115793,3561.6,3561.1,1.05617559]
[1641419079370,0.00115793,3561.6,3561.2,0.00111577]
[1641419079771,0.00115793,3561.6,3561.1,0.00168419]
[1641419083029,0.70228,3561.5,3561.1,0.00168419]
[1641419083224,0.70228,3561.5,3559.8,0.0090737]
[1641419083423,0.70228,3561.5,3559.2,0.70315221]
[1641419083424,0.70228,3561.5,3559.6,0.01021054]
[1641419083825,0.70228,3561.5,3560.3,0.57788547]
[1641419084025,1.56734519,3561.4,3560.3,0.57788547]
[1641419084226,1.56734519,3561.4,3560.4,0.00566315]
[1641419084425,1.17660325,3561.1,3560.4,0.00566315]
[1641419085428,1.17660325,3561.3,3560.4,0.00566315]
[1641419086870,1.56850312,3561.6,3560.4,0.00566315]
[1641419086871,1.17660325,3561.1,3560.4,0.00566315]
[1641419087475,1.17660325,3561.1,3560.9,0.42896578]
[1641419087674,1.17660325,3561.5,3560.9,0.42896578]
[1641419087875,1.17660325,3561.5,3561.0,0.00225261]
[1641419088479,1.17660325,3561.5,3560.4,0.00566315]
[1641419089075,1.88002118,3561.6,3559.9,0.00850527]
[1641419089276,1.88002118,3561.6,3560.3,0.42837267]
[1641419089477,1.85452427,3561.6,3560.3,0.42837267]
[1641419089677,1.85452427,3561.6,3560.4,0.00682108]
[1641419089926,1.17660325,3561.3,3560.4,0.00682108]
[1641419090428,1.12660325,3561.3,3560.4,0.00682108]
[1641419091430,2.24526621,3561.6,3560.4,0.00682108]
[1641419091829,2.24526621,3561.6,3560.2,0.00795793]
[1641419092030,1.56734519,3561.6,3560.2,0.00795793]
[1641419092632,1.56734519,3561.6,3560.3,0.328]
[1641419093031,1.56734519,3561.6,3560.4,0.00682108]
[1641419093231,2.60648835,3561.7,3560.4,0.00682108]
[1641419093578,2.60648835,3561.7,3561.1,0.44136259]
[1641419093975,2.60648835,3561.7,3561.2,0.0022737]
[1641419094377,2.60648835,3561.7,3560.4,0.00682108]
[1641419094979,2.60648835,3561.7,3560.6,0.44365589]
[1641419095383,2.60648835,3561.7,3560.7,0.00511581]
[1641419096187,4.17383354,3561.7,3560.7,0.00511581]
[1641419096385,4.87604354,3561.7,3560.7,0.00511581]
[1641419096587,4.87604354,3561.7,3560.6,0.00568424]
[1641419096788,4.87604354,3561.7,3560.4,0.00682108]
[1641419096789,0.70235,3561.3,3560.4,0.00682108]
[1641419096987,0.7024415,3560.9,3559.9,0.0096632]
[1641419097188,0.59238555,3560.5,3559.3,0.01270267]
[1641419097635,0.59238555,3560.5,3559.4,0.01250532]
[1641419098033,0.59238555,3560.5,3559.0,0.01477901]
[1641419098232,0.73936481,3560.1,3559.0,0.01477901]
[1641419098432,0.03676801,3560.1,3558.8,0.01591586]
[1641419098632,0.47746337,3559.9,3558.5,0.01762113]
[1641419098836,0.5,3560.4,3558.5,0.01762113]
[1641419099031,0.70267,3559.4,3558.5,0.01762113]
[1641419099234,1.4052931,3559.8,3558.5,0.01762113]
[1641419099432,2.89969798,3560.4,3558.5,0.01762113]
[1641419099632,1.56734519,3560.3,3558.5,0.01762113]
[1641419099831,52.7529399,3560.2,3559.0,0.49223353]
[1641419100035,52.2529399,3560.2,3559.0,0.49223353]
[1641419100235,0.70259,3559.9,3559.1,0.01421059]
[1641419100437,1.40516,3559.9,3559.1,0.01421059]
[1641419100640,1.56734519,3560.3,3558.4,1.36468624]
[1641419100641,1.56734519,3560.3,3558.5,0.01762113]
[1641419100835,1.56734519,3560.3,3559.1,0.01230959]
[1641419101078,1.46734519,3560.3,3559.1,0.01230959]
[1641419101280,1.1662,3560.7,3559.7,0.4659205]
[1641419101580,1.17318306,3560.3,3559.8,1.1145865]
[1641419101980,1.17168697,3560.3,3559.9,0.0096632]
[1641419102179,13.16323432,3561.6,3559.9,0.0096632]
[1641419102381,13.16323432,3561.6,3559.7,0.4659205]
[1641419102382,0.70236,3561.2,3559.8,0.01023163]
[1641419102981,0.7023,3561.3,3559.8,0.01023163]
[1641419103183,1.2357,3561.6,3559.9,0.34052548]
[1641419103382,3.76448835,3561.7,3561.1,1.22268288]
[1641419103383,2.60648835,3561.7,3561.1,1.22268288]
[1641419103581,0.7194,3562.6,3560.0,0.00909478]
[1641419103582,5.6158,3561.6,3560.0,0.00909478]
[1641419103783,5.6158,3561.6,3561.2,0.0022737]
[1641419103983,0.70233,3561.3,3560.0,0.00909478]
[1641419104383,0.5,3561.5,3560.0,0.00909478]
[1641419104584,5.6158,3561.6,3560.3,1.38669301]
[1641419105026,5.6158,3561.6,3560.4,0.00682108]
[1641419105427,5.60068176,3561.6,3560.4,0.00682108]
[1641419106029,5.60068176,3561.6,3560.8,0.50668959]
[1641419106327,5.60068176,3561.6,3560.9,0.00397897]
[1641419107029,6.3,3561.5,3560.8,0.46066856]
[1641419107229,6.30341054,3561.5,3560.8,0.46066856]
[1641419107431,4.05,3561.3,3560.7,0.4795722]
[1641419107630,0.00284212,3561.4,3560.7,0.4795722]
[1641419107831,0.00170527,3561.2,3560.7,0.4795722]
[1641419108030,0.0022737,3561.3,3560.7,0.4795722]
[1641419108232,0.00113685,3561.1,3560.7,0.4795722]
[1641419108432,0.00170527,3561.2,3560.7,0.4795722]
[1641419108681,0.00341054,3561.5,3560.3,1.38669301]
[1641419108876,0.00113685,3561.1,3560.3,1.38669301]
[1641419109079,0.00284212,3561.4,3560.4,0.00284211]
[1641419109278,0.00341054,3561.5,3560.4,0.00284211]
[1641419109479,0.36558628,3561.0,3560.4,0.00284211]
[1641419109777,0.36558628,3561.0,3560.7,0.53481515]
[1641419110378,0.36558628,3561.0,3560.9,1.03376925]
[1641419110583,0.36558628,3561.0,3560.9,3.73376925]
[1641419110782,0.36558628,3561.0,3560.9,4.06176925]
[1641419110982,0.32778628,3561.0,3560.9,4.06176925]
[1641419111181,0.32778628,3561.0,3560.9,4.76380805]
[1641419111383,0.32778628,3561.0,3560.9,21.00380805]
[1641419111586,0.00341054,3561.5,3561.0,7.65]
[1641419111785,0.00341054,3561.5,3561.1,0.328]
[1641419111982,0.00284212,3561.4,3561.1,0.328]
[1641419112187,0.00284212,3561.4,3561.2,17.64395]
[1641419112424,5.60068176,3561.6,3561.2,17.64395]
[1641419112425,0.0022737,3561.3,3561.2,17.64395]
[1641419112625,0.0022737,3561.3,3561.2,0.46911306]
[1641419113328,0.02150961,3561.3,3561.2,0.46911306]
[1641419114131,0.02150961,3561.3,3560.9,1.03376925]
[1641419114532,0.02150961,3561.3,3560.9,2.43778365]
[1641419114533,0.00170527,3561.2,3560.9,2.43778365]
[1641419114832,0.00113685,3561.1,3560.9,2.43778365]
[1641419115034,0.02037276,3561.1,3560.9,2.43778365]
[1641419115232,0.02037276,3561.1,3561.0,8.43380694]
[1641419115431,7.276e-05,3561.1,3561.0,8.77419817]
[1641419115633,6.08849476,3561.6,3561.3,0.70184]
[1641419115836,6.08849476,3561.6,3561.5,16.24]
[1641419115837,0.487813,3561.6,3561.5,16.24]
[1641419116076,0.487813,3561.6,3561.5,17.64911045]
[1641419116276,1.3e-05,3561.6,3561.5,17.64911045]
[1641419116681,1.3e-05,3561.6,3561.5,17.97711045]
[1641419116887,1.3e-05,3561.6,3561.5,18.67897055]
[1641419117683,1.3e-05,3561.6,3561.5,17.2698601]
[1641419121028,1.3e-05,3561.6,3561.5,17.28079557]
[1641419121431,1.3e-05,3561.6,3561.5,17.85420028]
[1641419121634,1.3e-05,3561.6,3561.5,18.25446319]
[1641419121835,4.19494495,3563.9,3561.5,18.25446319]
[1641419121836,1.18177663,3563.9,3562.4,0.70164]
[1641419122036,1.18177663,3563.9,3562.6,17.6432072]
[1641419122232,1.18177663,3563.9,3562.7,0.328]
[1641419122432,1.18177663,3563.9,3563.7,1.34880855]
[1641419122633,7.35177663,3564.1,3563.7,1.79180582]
[1641419123032,7.35177663,3564.1,3563.7,0.44299727]
[1641419123033,0.01648428,3564.0,3563.7,0.44299727]
[1641419123232,0.01648428,3564.0,3562.7,0.328]
[1641419123433,7.35177663,3564.1,3561.8,0.328]
[1641419123434,0.01591586,3563.9,3561.8,0.328]
[1641419123887,0.01534743,3563.8,3561.8,0.328]
[1641419124085,0.01534743,3563.8,3562.2,1.75675583]
[1641419124086,0.56562563,3563.5,3562.2,1.75675583]
[1641419124287,0.70183,3563.5,3562.2,1.75675583]
[1641419124484,0.70183,3563.5,3562.2,1.23505664]
[1641419124485,0.01307374,3563.4,3562.2,1.23505664]
[1641419124883,0.70183,3563.5,3562.2,1.23505664]
[1641419124884,0.01250532,3563.3,3562.2,1.23505664]
[1641419125284,0.01193689,3563.2,3562.3,0.0429]
[1641419125784,0.01136847,3563.1,3562.3,0.0429]
[1641419126187,0.01080005,3563.0,3562.3,0.0429]
[1641419126387,0.01080005,3563.0,3562.4,0.01093179]
[1641419126587,0.01023162,3562.9,3562.4,0.01093179]
[1641419126988,0.0096632,3562.8,3562.4,0.01093179]
[1641419127429,0.00909477,3562.7,3562.4,0.01093179]
[1641419127829,0.00852635,3562.6,3562.4,0.01093179]
[1641419128234,0.00795793,3562.5,3562.4,0.01093179]
[1641419128433,0.0203169,3564.0,3562.5,5.8]
[1641419128635,1.15000207,3564.0,3562.6,0.56402772]
[1641419128836,0.00795793,3563.9,3563.8,0.44521597]
[1641419129135,6.17,3564.1,3563.8,0.44521597]
[1641419129333,6.17,3564.1,3563.8,0.77321597]
[1641419129334,6.02,3564.1,3563.8,0.77321597]
[1641419129536,0.84159476,3564.7,3564.0,0.01229091]
[1641419129537,1.57343177,3564.5,3564.0,0.01229091]
[1641419129740,0.09213177,3564.5,3564.2,7.9]
[1641419129934,3.92892858,3565.2,3564.5,7.9]
[1641419130134,3.92892858,3565.2,3564.8,0.70113]
[1641419130135,3.39072858,3565.2,3564.8,0.70113]
[1641419130336,0.00682108,3565.1,3564.9,0.25783]
[1641419130539,5.07787059,3565.8,3565.2,17.61416991]
[1641419130839,2.43014428,3565.8,3565.3,0.75551968]
[1641419131128,5.20141692,3566.1,3565.6,7.9]
[1641419131299,6.94,3567.5,3566.0,0.01297532]
[1641419131497,6.50177114,3566.7,3566.6,5.41296541]
[1641419131697,3.9641206,3567.8,3566.6,1.34096541]
[1641419131896,3.9641206,3567.8,3567.0,0.51382726]
[1641419132101,3.9641206,3567.8,3566.9,0.328]
[1641419132305,3.9641206,3567.8,3566.2,16.24]
[1641419132601,3.9641206,3567.8,3566.1,0.05382075]
[1641419133001,0.56425083,3567.6,3566.2,1.54932051]
[1641419133201,0.06554899,3567.8,3566.2,1.54932051]
[1641419133402,0.01279954,3567.9,3566.2,1.54932051]
[1641419133403,0.28963015,3567.9,3566.2,1.54932051]
[1641419133601,0.00113685,3567.7,3566.3,0.00682108]
[1641419134001,0.00227369,3567.9,3566.3,0.00682108]
[1641419134203,0.00227369,3567.9,3567.2,1.81930429]
[1641419134402,0.00170527,3567.8,3567.2,1.81930429]
[1641419134602,0.00170527,3567.8,3567.3,0.00113685]
[1641419134833,0.00227369,3567.9,3567.3,0.00113685]
[1641419135029,0.00227369,3567.9,3567.3,0.04403685]
[1641419135230,0.00170527,3567.8,3567.3,0.04403685]
[1641419135430,0.00170527,3567.8,3567.4,0.328]
[1641419135630,0.01261241,3570.3,3567.4,0.328]
[1641419135631,0.00227369,3567.9,3567.7,0.01264897]
[1641419135831,1.377,3569.7,3568.0,7.9]
[1641419136031,1.377,3569.7,3568.5,0.70047]
[1641419136230,1.377,3569.7,3568.4,0.328]
[1641419136530,1.377,3569.7,3569.0,1.3300729]
[1641419137535,3.71156847,3569.9,3569.1,0.01099048]
[1641419137935,0.00910005,3569.8,3569.1,0.01099048]
[1641419138437,0.7194616,3570.1,3569.2,0.0429]
[1641419138680,3.7025,3570.0,3569.2,0.0429]
[1641419138878,0.00910005,3569.8,3569.2,0.0429]
[1641419139281,0.00853163,3569.7,3569.2,0.0429]
[1641419139581,3.7025,3570.0,3569.1,0.01099048]
[1641419139582,0.0079632,3569.6,3569.1,0.01099048]
[1641419139786,0.0079632,3569.6,3569.1,0.00543735]
[1641419139984,0.00739478,3569.5,3569.1,0.00543735]
[1641419140382,0.00682636,3569.4,3569.1,0.00543735]
[1641419140683,0.0008997,3569.8,3569.1,3.735e-05]
[1641419140684,7.9,3569.2,3569.1,3.735e-05]
[1641419141181,7.9,3569.2,3567.1,0.328]
[1641419141182,7.9,3569.1,3567.1,0.328]
[1641419141586,0.47394833,3568.7,3567.4,0.49710509]
[1641419141883,0.00227897,3568.6,3567.5,0.00397369]
[1641419142334,0.00171055,3568.5,3567.5,1.28561569]
[1641419142535,0.00171055,3568.5,3567.5,1.281642]
[1641419142732,0.00114212,3568.4,3567.6,0.00340527]
[1641419143131,7.9,3569.1,3567.6,0.00340527]
[1641419143132,0.57694455,3569.0,3567.6,0.52536556]
[1641419143331,0.57694455,3569.0,3567.6,0.00340527]
[1641419143532,0.00398424,3568.9,3567.8,0.01237835]
[1641419143732,0.00398424,3568.9,3567.9,0.328]
[1641419143932,0.00341582,3568.8,3567.9,0.3297]
[1641419144132,0.00341582,3568.8,3568.0,0.00113157]
[1641419144331,1.60360521,3569.2,3568.0,0.00113157]
[1641419144332,0.00284739,3568.7,3568.0,0.00113157]
[1641419144734,0.00227897,3568.6,3568.1,1.41732151]
[1641419145140,0.00171055,3568.5,3568.1,1.41732151]
[1641419145534,0.00114212,3568.4,3568.1,1.41732151]
[1641419145932,1.60360521,3569.2,3568.1,1.41732151]
[1641419145933,0.00512109,3569.1,3568.1,1.41732151]
[1641419146180,1.60360521,3569.0,3568.1,1.41732151]
[1641419146481,1.60360521,3569.0,3568.0,0.00113157]
[1641419146482,0.48629342,3568.9,3568.0,0.00113157]
[1641419146679,0.48629342,3568.9,3568.2,3.1702061]
[1641419146879,0.00341582,3568.8,3568.2,3.1702061]
[1641419147285,0.00284739,3568.7,3568.2,3.1702061]
[1641419147486,0.00284739,3568.7,3568.3,16.568]
[1641419147687,7.897e-05,3568.6,3568.3,16.568]
[1641419147886,1.60360521,3569.2,3568.6,7.9]
[1641419147887,0.17168418,3569.2,3568.6,7.9]
[1641419148087,0.17168418,3569.0,3568.7,17.68588307]
[1641419148287,0.17168418,3569.0,3568.9,22.39635591]
[1641419148491,0.17168418,3569.0,3568.9,17.57435591]
[1641419148687,0.17168418,3569.0,3568.9,18.6399049]
[1641419148688,0.17395787,3569.0,3568.9,18.6399049]
[1641419148886,4.17537765,3570.1,3569.2,0.70033]
[1641419149087,4.17537765,3570.1,3569.3,0.328]
[1641419149388,0.00397897,3569.7,3569.4,16.24]
[1641419149587,0.00397897,3569.7,3569.5,1.0]
[1641419149830,4.17537765,3570.1,3569.5,1.0]
[1641419149831,0.00341054,3569.6,3569.5,2.12973946]
[1641419150135,0.1703613,3570.1,3569.5,9.63781627]
[1641419150341,0.1703613,3570.1,3569.6,16.24]
[1641419150536,0.1703613,3570.1,3569.8,0.70012]
[1641419150740,0.1703613,3570.1,3569.9,0.328]
[1641419151137,0.1703613,3570.1,3570.0,16.24]
[1641419151335,0.1703613,3570.1,3570.0,16.568]
[1641419151539,0.1703613,3570.1,3570.0,1.628]
[1641419151937,0.1703613,3570.1,3570.0,0.328]
[1641419152436,0.1703613,3570.1,3570.0,0.628]
[1641419152635,0.1703613,3570.1,3570.0,0.328]
[1641419153039,2.7703613,3570.1,3570.0,0.628]
[1641419153240,0.1703613,3570.1,3569.7,0.00170527]
[1641419153698,0.1703613,3570.1,3569.6,0.0022737]
[1641419156803,0.1703613,3570.1,3569.0,0.00568424]
[1641419157006,0.1703613,3570.1,3568.8,0.00682108]
[1641419157330,0.6060834,3569.9,3568.8,0.00682108]
[1641419157530,0.1703613,3570.1,3569.0,1.04818022]
[1641419157932,0.1703613,3570.1,3569.1,0.00511581]
[1641419158330,0.16954058,3570.1,3569.1,0.00511581]
[1641419158730,0.16954058,3570.1,3569.3,0.5576733]
[1641419158932,0.16954058,3570.1,3570.0,1.32462202]
[1641419160735,0.16954058,3570.1,3569.4,0.00341054]
[1641419161205,0.16954058,3570.1,3569.0,0.00568424]
[1641419161606,0.16954058,3570.1,3570.0,3.16878214]
[1641419161806,0.16954058,3570.1,3570.0,3.18115437]
[1641419162210,0.16954058,3570.1,3570.0,3.16878214]
[1641419162411,0.16954058,3570.1,3569.9,17.2682]
[1641419162611,0.16954058,3570.1,3570.0,25.57899574]
[1641419162811,0.16954058,3570.1,3570.0,9.33899574]
[1641419163014,0.16954058,3570.1,3569.9,1.79392219]
[1641419163213,0.16954058,3570.1,3569.8,2.10836914]
[1641419163214,0.16954058,3570.1,3570.0,0.01090942]
[1641419163711,0.18219124,3570.1,3570.0,0.01090942]
[1641419163911,0.18219124,3570.1,3570.0,3.16969156]
[1641419164111,0.18219124,3570.1,3570.0,4.44197085]
[1641419164710,0.18219124,3570.1,3570.0,3.16969156]
[1641419166240,0.54990844,3570.0,3569.5,2.92593409]
[1641419166433,0.54990844,3570.0,3568.9,2.85916046]
[1641419166434,7.9,3569.9,3569.4,1.42595987]
[1641419166631,7.91265066,3569.9,3569.6,0.0022737]
[1641419166832,7.9,3569.8,3569.4,0.00290199]
[1641419167036,13.51695593,3569.8,3569.4,0.00290199]
[1641419167934,5.61695593,3569.8,3569.2,1.21194913]
[1641419168337,5.61695593,3569.8,3569.3,0.00113685]
[1641419168778,5.61695593,3569.8,3569.3,0.01204794]
[1641419170185,0.49425554,3569.7,3569.3,0.01204794]
[1641419170388,0.5069062,3569.7,3569.3,0.01204794]
[1641419171585,0.01265066,3569.7,3569.3,0.01204794]
[1641419172638,0.01265066,3569.7,3569.4,0.59290392]
[1641419173037,0.01265066,3569.7,3569.4,1.22090392]
[1641419174037,0.01265066,3569.7,3569.5,18.34071]
[1641419174236,0.01265066,3569.7,3569.5,18.35162094]
[1641419174840,0.01265066,3569.7,3569.5,18.65162094]
[1641419175039,0.01265066,3569.7,3569.6,17.24]
[1641419175239,0.01265066,3569.7,3569.6,0.3]
[1641419175439,0.01265066,3569.7,3569.6,16.54]
[1641419176093,0.01265066,3569.7,3569.6,17.868]
[1641419176292,0.01265066,3569.7,3569.6,16.868]
[1641419176894,0.01265066,3569.7,3569.6,16.88037275]
[1641419177094,0.01265066,3569.7,3569.6,17.88037275]
[1641419177495,0.00170527,3569.8,3569.7,24.14]
[1641419177695,0.00170527,3569.8,3569.7,25.468]
[1641419177895,0.00170527,3569.8,3569.7,25.718]
[1641419178094,0.16954058,3570.1,3569.9,0.70012]
[1641419178295,0.11954058,3570.1,3570.0,25.19895217]
[1641419178495,0.11954058,3570.1,3570.0,25.97709916]
[1641419178699,1.54214495,3571.0,3570.3,1.40003]
[1641419178896,1.54214495,3571.4,3570.4,16.568]
[1641419179095,1.54214495,3571.4,3571.3,1.23942354]
[1641419179496,1.55123973,3571.4,3571.3,1.23942354]
[1641419179931,1.50123973,3571.4,3571.3,1.23942354]
[1641419180131,0.00909478,3571.4,3571.3,1.23942354]
[1641419180930,0.7194616,3572.3,3571.3,1.23942354]
[1641419181234,0.00454738,3572.2,3571.3,1.23942354]
[1641419181631,0.00397896,3572.1,3571.3,1.23942354]
[1641419181833,0.00397896,3572.1,3570.4,0.328]
[1641419182035,0.00341054,3572.0,3570.5,0.70017]
[1641419182233,0.00341054,3572.0,3570.5,0.70528582]
[1641419182435,0.00284211,3571.9,3570.6,0.00454739]
[1641419182835,0.00227369,3571.8,3570.7,1.70099516]
[1641419183234,0.00170527,3571.7,3570.8,0.00341054]
[1641419183685,0.00113684,3571.6,3570.8,0.00341054]
[1641419184187,0.00284211,3571.9,3570.8,0.00341054]
[1641419184682,0.00227369,3571.8,3570.8,0.00341054]
[1641419185084,0.00170527,3571.7,3570.9,0.01090543]
[1641419185485,0.00113684,3571.6,3571.0,0.0022737]
[1641419185887,1.20017,3572.2,3571.0,0.0022737]
[1641419185888,0.00397896,3572.1,3571.0,0.0022737]
[1641419186288,0.66265854,3572.0,3571.0,0.0022737]
[1641419186689,0.00284211,3571.9,3571.0,0.0022737]
[1641419187093,0.659248,3572.0,3571.4,0.6999872]
[1641419187094,0.00227369,3571.8,3571.4,0.6999872]
[1641419187331,0.00227369,3571.8,3571.5,0.90836272]
[1641419187532,0.00170527,3571.7,3571.5,17.44836272]
[1641419187933,0.659248,3572.0,3571.6,1.0]
[1641419188134,0.659248,3572.0,3571.8,1.39961]
[1641419188333,0.659248,3572.0,3571.9,16.568]
[1641419188533,0.659248,3572.0,3571.9,17.868]
[1641419188733,0.66265854,3572.0,3571.9,17.868]
[1641419188935,0.66265854,3572.0,3571.9,18.168]
[1641419189136,0.66265854,3572.0,3571.9,20.17669699]
[1641419190140,7.6581,3573.6,3572.5,2.79862]
[1641419190337,3.7079,3573.6,3573.0,1.399227]
[1641419190539,4.00501635,3573.7,3573.1,1.33254579]
[1641419190736,4.00501635,3573.7,3573.2,0.328]
[1641419190937,0.00909477,3573.6,3573.2,0.328]
[1641419191488,0.00852635,3573.5,3573.3,1.3991996]
[1641419191689,0.00852635,3573.5,3573.4,16.568]
[1641419191886,4.00501635,3574.2,3573.4,16.868]
[1641419192091,4.00501635,3574.2,3573.5,1.3]
[1641419192290,0.01193689,3574.1,3573.6,0.328]
[1641419192492,0.01193689,3574.1,3573.7,2.7979363]
[1641419192691,0.7194616,3574.4,3573.8,16.568]
[1641419192692,0.01136847,3574.0,3573.8,16.568]
[1641419192894,0.68083007,3574.4,3574.0,6.25]